bitfinex-derivatives/quotes_SOLF0:USTF0_20250419
["timestamp","ask_amount","ask_price","bid_price","bid_amount"]
[1745053390494,5.73971453,139.17,139.13,5.73971453]
[1745053390695,5.73971453,139.17,139.13,25.16]
[1745053390987,5.73971453,139.15,139.12,25.16]
[1745053391192,5.73971453,139.16,139.12,25.16]
[1745053391392,3.9016,139.2,139.15,5.73971453]
[1745053391593,3.9016,139.2,139.15,30.89971453]
[1745053398696,5.73971453,139.22,139.15,30.89971453]
[1745053398903,5.73971453,139.23,139.17,5.73971453]
[1745053399102,5.73971453,139.23,139.18,25.14]
[1745053406009,28.3922593,139.27,139.18,25.14]
[1745053406205,5.73971453,139.24,139.19,5.73971453]
[1745053406399,4.0455,139.26,139.18,25.14]
[1745053406604,5.73971453,139.23,139.18,25.14]
[1745053410210,4.0455,139.26,139.18,25.14]
[1745053410511,4.8443422,139.25,139.18,25.14]
[1745053410713,5.73971453,139.23,139.18,25.14]
[1745053415814,4.85746598,139.22,139.18,25.14]
[1745053416115,10.60075018,139.21,139.18,25.14]
[1745053416414,5.73971453,139.21,139.18,25.14]
[1745053419216,4.86873065,139.2,139.18,25.14]
[1745053419510,5.73971453,139.23,139.18,25.14]
[1745053419714,4.8682232,139.22,139.18,25.14]
[1745053419915,5.73971453,139.23,139.18,25.14]
[1745053420214,4.86822318,139.22,139.18,25.14]
[1745053420419,5.73971453,139.23,139.18,25.14]
[1745053420615,4.86960302,139.22,139.18,25.14]
[1745053420816,5.73971453,139.23,139.18,25.14]
[1745053421115,4.86960302,139.22,139.18,25.14]
[1745053421313,5.73971453,139.23,139.18,25.14]
[1745053421515,4.8712548,139.22,139.18,25.14]
[1745053421715,5.73971453,139.23,139.18,25.14]
[1745053421916,4.87121919,139.22,139.18,25.14]
[1745053422116,5.73971453,139.23,139.18,25.14]
[1745053422316,4.8733605,139.22,139.18,25.14]
[1745053422517,4.87339612,139.21,139.17,5.73971453]
[1745053422719,5.73971453,139.23,139.17,30.87971453]
[1745053422918,4.8733605,139.22,139.17,30.87971453]
[1745053423119,4.87561806,139.21,139.17,30.87971453]
[1745053423320,5.73971453,139.23,139.17,30.87971453]
[1745053423618,4.87561806,139.22,139.17,30.87971453]
[1745053423816,4.87561806,139.21,139.17,30.87971453]
[1745053424018,5.73971453,139.23,139.17,30.87971453]
[1745053424219,4.87822486,139.22,139.17,30.87971453]
[1745053424419,4.87822486,139.21,139.17,30.87971453]
[1745053424618,5.73971453,139.23,139.17,30.87971453]
[1745053424817,4.87831568,139.22,139.17,30.87971453]
[1745053425025,4.87831568,139.21,139.17,25.14]
[1745053425222,5.73971453,139.26,139.21,5.73971453]
[1745053425419,4.87688316,139.25,139.21,30.87971453]
[1745053425719,4.87688316,139.24,139.21,30.87971453]
[1745053425920,4.87688316,139.23,139.21,25.14]
[1745053426121,4.87688316,139.22,139.21,25.14]
[1745053426522,5.73971453,139.24,139.21,25.14]
[1745053426718,4.88319387,139.23,139.21,25.14]
[1745053426918,4.88337511,139.22,139.21,25.14]
[1745053429023,4.88496327,139.22,139.21,25.14]
[1745053429424,4.8852266,139.22,139.21,25.14]
[1745053431524,5.73971453,139.27,139.21,30.87971453]
[1745053432725,5.73971453,139.28,139.21,30.87971453]
[1745053442541,5.73971453,139.28,139.23,5.73971453]
[1745053442745,5.73971453,139.28,139.24,25.14]
[1745053443037,1.24977554,139.33,139.27,5.73971453]
[1745053443240,6.98949007,139.33,139.28,25.14]
[1745053443438,5.16980287,139.32,139.28,25.14]
[1745053443640,5.16980287,139.31,139.28,25.14]
[1745053443838,5.16980287,139.3,139.28,25.14]
[1745053444041,5.16980287,139.29,139.28,25.14]
[1745053445345,10.9095174,139.29,139.17,929.7]
[1745053445536,5.73971453,139.26,139.21,5.73971453]
[1745053445843,5.16980287,139.25,139.22,25.14]
[1745053446036,5.16980287,139.24,139.22,25.14]
[1745053446234,5.16980287,139.23,139.22,25.14]
[1745053446948,5.16980287,139.23,139.22,32.3234]
[1745053448747,5.73971453,139.26,139.23,7.1829]
[1745053449047,4.85218753,139.25,139.22,25.14]
[1745053449246,4.85218753,139.24,139.22,25.14]
[1745053449446,4.85218753,139.23,139.22,25.14]
[1745053450242,4.85218753,139.23,139.19,5.73971453]
[1745053450446,10.59262392,139.22,139.19,25.32]
[1745053450648,4.8532885,139.21,139.18,25.32]
[1745053450843,5.73971453,139.22,139.18,25.32]
[1745053451056,4.85355569,139.21,139.18,25.32]
[1745053451248,4.85355569,139.2,139.18,25.32]
[1745053451450,5.73971453,139.23,139.18,25.32]
[1745053451651,4.85407764,139.22,139.18,25.32]
[1745053451949,4.85407764,139.21,139.18,25.32]
[1745053452148,4.85407764,139.2,139.18,25.32]
[1745053452451,5.73971453,139.23,139.18,25.32]
[1745053452650,4.85394668,139.22,139.18,25.32]
[1745053452849,4.85394668,139.21,139.18,25.32]
[1745053453051,4.85394668,139.2,139.18,25.32]
[1745053453251,5.73971453,139.23,139.18,25.32]
[1745053453451,4.85390495,139.22,139.18,25.32]
[1745053453751,4.85390495,139.21,139.18,25.32]
[1745053453952,4.85386881,139.2,139.18,25.32]
[1745053454251,5.73971453,139.23,139.18,25.32]
[1745053454451,4.85385842,139.22,139.18,25.32]
[1745053454647,4.85385842,139.21,139.18,25.32]
[1745053454852,4.85385842,139.2,139.18,25.32]
[1745053455047,5.73971453,139.23,139.18,25.32]
[1745053455243,4.85393106,139.22,139.18,25.32]
[1745053455443,4.85393106,139.21,139.18,25.32]
[1745053455645,4.85393106,139.2,139.18,25.32]
[1745053455846,5.73971453,139.23,139.18,25.32]
[1745053456153,4.85385959,139.22,139.18,25.32]
[1745053456353,4.85385959,139.21,139.18,25.32]
[1745053456553,4.85385959,139.2,139.18,25.32]
[1745053456751,5.73971453,139.23,139.18,25.32]
[1745053456955,4.85364163,139.22,139.18,25.32]
[1745053457254,4.85364163,139.21,139.18,25.32]
[1745053457554,5.73971453,139.19,139.14,25.32]
[1745053457755,5.73971453,139.17,139.14,25.32]
[1745053458051,5.73971453,139.17,139.13,25.32]
[1745053458256,4.85336438,139.16,139.12,5.73971453]
[1745053458451,10.59373858,139.15,139.1,5.73971453]
[1745053458755,4.85410026,139.14,139.11,25.32]
[1745053458948,5.73971453,139.15,139.11,25.32]
[1745053459351,4.85148279,139.14,139.11,25.32]
[1745053459546,4.85157741,139.13,139.1,5.73971453]
[1745053459757,4.8519884,139.12,139.09,25.32]
[1745053460057,5.73971453,139.13,139.09,25.32]
[1745053460354,4.85242466,139.12,139.09,25.32]
[1745053460554,10.59213919,139.11,139.05,5.73971453]
[1745053460753,5.73971453,139.07,139.04,25.32]
[1745053460947,5.73971453,139.07,139.02,31.05971453]
[1745053461152,5.73971453,139.07,139.02,25.32]
[1745053461656,5.73971453,139.07,139.03,5.73971453]
[1745053461955,31.05971453,139.09,139.03,5.73971453]
[1745053462159,4.84136507,139.08,139.03,5.73971453]
[1745053462455,5.73971453,139.07,139.03,5.73971453]
[1745053463059,31.05971453,139.09,139.03,5.73971453]
[1745053463259,25.32,139.09,139.02,25.32]
[1745053464657,25.32,139.09,139.03,8.96230614]
[1745053465060,3.7709,139.11,139.03,8.96230614]
[1745053465061,1.8791,139.11,139.03,8.96230614]
[1745053466960,10.84140614,139.11,139.02,25.32]
[1745053468663,8.96230614,139.09,139.02,25.32]
[1745053468862,34.30230614,139.09,139.02,25.32]
[1745053469962,25.34,139.09,139.02,25.32]
[1745053475964,34.30230614,139.09,139.02,25.32]
[1745053476164,2.0106,139.08,139.02,25.32]
[1745053476365,2.0106,139.08,138.99,25.36]
[1745053476765,2.0106,139.08,138.98,568.84]
[1745053476963,8.96230614,139.07,138.99,25.36]
[1745053477266,25.36,139.06,138.99,25.36]
[1745053477462,27.204,139.06,138.99,25.36]
[1745053477764,27.204,139.06,138.98,568.84]
[1745053477765,2.0342,139.05,138.98,568.84]
[1745053478066,2.0342,139.05,138.99,25.36]
[1745053478566,2.0342,139.05,138.96,25.36]
[1745053478964,10.99650614,139.05,138.96,25.36]
[1745053482964,8.96230614,139.03,138.93,25.44]
[1745053483168,8.96230614,139.01,138.93,25.44]
[1745053483670,8.96230614,139.01,138.89,10.88790614]
[1745053483972,8.96230614,138.97,138.89,25.44]
[1745053484270,8.96230614,138.95,138.85,25.44]
[1745053484569,27.2962,138.94,138.85,25.44]
[1745053485869,8.96230614,138.93,138.85,25.44]
[1745053486168,10.87040614,138.93,138.85,25.44]
[1745053487668,1.9081,138.93,138.85,25.44]
[1745053490471,27.2962,138.94,138.86,8.96230614]
[1745053491672,25.44,138.94,138.86,8.96230614]
[1745053492372,1.8418,138.96,138.88,8.96230614]
[1745053492567,25.46,138.96,138.92,8.96230614]
[1745053492771,25.46,138.99,138.92,8.96230614]
[1745053500175,25.46,138.99,138.94,8.96230614]
[1745053500375,1.25256452,139.0,138.96,8.96230614]
[1745053500576,25.46,139.02,138.96,8.96230614]
[1745053503083,1.9676,139.04,138.98,8.96230614]
[1745053503277,1.9676,139.04,138.98,34.42230614]
[1745053503677,25.46,139.05,138.98,34.42230614]
[1745053503877,4.8127747,139.04,138.98,34.42230614]
[1745053504079,25.46,139.05,138.98,34.42230614]
[1745053504279,4.8127747,139.04,138.98,34.42230614]
[1745053504480,25.46,139.05,138.98,34.42230614]
[1745053504678,4.81663219,139.04,138.98,34.42230614]
[1745053504879,25.46,139.05,138.98,34.42230614]
[1745053505080,4.81663304,139.04,138.98,25.46]
[1745053505283,25.46,139.05,138.98,25.46]
[1745053505575,4.81926379,139.04,138.98,25.46]
[1745053505877,25.46,139.05,138.98,25.46]
[1745053506079,4.81923611,139.04,138.98,25.46]
[1745053506279,25.46,139.05,138.98,25.46]
[1745053506479,4.8200386,139.04,138.98,25.46]
[1745053506676,25.46,139.05,138.98,25.46]
[1745053506881,4.82007006,139.04,138.98,25.46]
[1745053507179,25.46,139.05,138.98,25.46]
[1745053507482,4.82076368,139.04,138.98,25.46]
[1745053507678,25.46,139.05,138.98,25.46]
[1745053507880,4.82076411,139.04,138.98,25.46]
[1745053508078,25.46,139.05,138.98,25.46]
[1745053508278,4.8208028,139.04,138.98,25.46]
[1745053508479,25.46,139.05,138.98,25.46]
[1745053508680,4.82147728,139.04,138.98,25.46]
[1745053508882,25.46,139.05,138.98,25.46]
[1745053509084,4.82144177,139.04,138.98,25.46]
[1745053509383,25.46,139.05,138.98,25.46]
[1745053509686,8.96230614,139.03,138.94,25.52]
[1745053509983,32.30666296,139.02,138.94,25.52]
[1745053510181,4.82216296,139.01,138.94,25.52]
[1745053510386,27.4845,139.02,138.94,25.52]
[1745053510583,4.82439917,139.01,138.94,25.52]
[1745053510785,27.4845,139.02,138.94,25.52]
[1745053510984,4.82456519,139.01,138.94,25.52]
[1745053511185,27.4845,139.02,138.94,25.52]
[1745053511384,4.82617944,139.01,138.94,25.52]
[1745053511586,27.4845,139.02,138.94,25.52]
[1745053511784,4.82613815,139.01,138.94,25.52]
[1745053511984,27.4845,139.02,138.94,25.52]
[1745053512282,4.82638698,139.01,138.94,25.52]
[1745053512483,28.73686167,139.02,138.94,34.48230614]
[1745053512687,25.52,139.06,138.98,8.96230614]
[1745053512988,4.82688079,139.05,139.0,8.96230614]
[1745053513184,25.52,139.06,139.0,8.96230614]
[1745053513382,25.52,139.09,139.01,25.52]
[1745053513582,4.82635041,139.08,139.01,25.52]
[1745053513786,4.82635041,139.07,139.01,25.52]
[1745053514086,25.52,139.08,139.01,25.52]
[1745053514291,4.82609254,139.07,139.02,8.96230614]
[1745053514486,25.52,139.08,139.02,8.96230614]
[1745053515293,3.9466,139.1,139.02,8.96230614]
[1745053515494,4.82558794,139.09,139.02,8.96230614]
[1745053515693,3.9466,139.1,139.02,8.96230614]
[1745053515894,4.82558628,139.09,139.02,8.96230614]
[1745053516095,3.9466,139.1,139.02,8.96230614]
[1745053516694,4.82532817,139.09,139.02,8.96230614]
[1745053516894,3.9466,139.1,139.02,8.96230614]
[1745053517094,4.82544356,139.09,139.02,8.96230614]
[1745053517289,3.9466,139.1,139.02,8.96230614]
[1745053517587,4.82547655,139.09,139.02,8.96230614]
[1745053517791,3.9466,139.1,139.02,8.96230614]
[1745053517995,4.82547653,139.09,139.02,8.96230614]
[1745053518298,3.9466,139.1,139.02,8.96230614]
[1745053519292,1.9581,139.1,139.02,8.96230614]
[1745053525699,4.82079561,139.09,139.01,25.52]
[1745053525995,25.5,139.08,139.01,25.52]
[1745053528205,8.96230614,139.07,139.01,25.52]
[1745053528500,8.96230614,139.07,138.98,25.5]
[1745053530202,4.82144182,139.06,138.98,25.5]
[1745053531203,8.96230614,139.07,138.98,25.5]
[1745053531502,4.82494521,139.06,138.98,25.5]
[1745053531703,8.96230614,139.07,138.98,25.5]
[1745053531908,4.82494469,139.06,138.98,25.5]
[1745053532204,8.96230614,139.07,138.98,34.46230614]
[1745053532403,4.82804733,139.06,138.98,34.46230614]
[1745053532603,8.96230614,139.07,138.98,34.46230614]
[1745053532803,4.8280468,139.06,138.98,34.46230614]
[1745053533000,8.96230614,139.07,138.98,34.46230614]
[1745053533202,4.8280468,139.06,138.98,34.46230614]
[1745053533404,4.8280468,139.05,138.98,34.46230614]
[1745053533603,10.21426232,139.07,138.98,34.46230614]
[1745053533901,4.83150036,139.06,138.98,34.46230614]
[1745053534103,4.83150036,139.05,138.98,34.46230614]
[1745053534303,10.21426232,139.07,138.98,34.46230614]
[1745053534602,4.83538271,139.06,138.98,34.46230614]
[1745053534802,4.83538271,139.05,138.98,34.46230614]
[1745053535004,10.21426232,139.07,138.98,34.46230614]
[1745053535206,4.83538271,139.06,138.98,34.46230614]
[1745053535401,4.83538271,139.05,138.98,34.46230614]
[1745053535601,4.83538271,139.04,138.98,34.46230614]
[1745053535804,10.21426232,139.07,138.98,34.46230614]
[1745053536004,4.83935753,139.06,138.98,34.46230614]
[1745053536203,4.83935753,139.05,138.98,34.46230614]
[1745053536402,4.83935753,139.04,138.98,34.46230614]
[1745053536606,10.21426232,139.07,138.98,34.46230614]
[1745053536906,4.84310169,139.06,138.98,34.46230614]
[1745053537105,4.84310169,139.05,138.98,34.46230614]
[1745053537306,4.84310169,139.04,138.98,34.46230614]
[1745053537601,1.25195618,139.07,139.0,8.96230614]
[1745053537799,4.84611511,139.06,139.0,8.96230614]
[1745053538002,4.84611511,139.05,139.01,25.5]
[1745053538200,25.5,139.08,139.01,25.5]
[1745053538404,4.84602562,139.07,139.01,25.5]
[1745053538607,4.84602562,139.06,139.01,25.5]
[1745053538807,25.5,139.08,139.01,25.5]
[1745053539007,4.84723487,139.07,139.01,25.5]
[1745053539303,4.84723487,139.06,139.01,25.5]
[1745053539507,4.84723487,139.05,139.01,25.5]
[1745053539708,25.5,139.08,139.01,25.5]
[1745053539909,4.84884145,139.07,139.01,25.5]
[1745053540110,25.5,139.08,139.01,25.5]
[1745053540111,4.84884145,139.06,139.01,25.5]
[1745053540407,4.84884145,139.05,139.01,25.5]
[1745053540607,4.84884145,139.04,138.98,34.40230614]
[1745053540807,4.84884145,139.03,138.98,34.40230614]
[1745053541007,25.44,139.05,138.98,34.40230614]
[1745053541210,4.85121082,139.04,138.98,34.40230614]
[1745053541402,4.85121082,139.03,138.98,34.40230614]
[1745053541608,25.44,139.05,138.98,34.40230614]
[1745053541909,4.85318321,139.04,138.98,34.40230614]
[1745053542205,4.85318321,139.03,138.98,34.40230614]
[1745053542402,4.85318321,139.02,138.98,34.40230614]
[1745053542606,25.44,139.05,138.98,34.40230614]
[1745053542808,4.85535174,139.04,138.98,34.40230614]
[1745053543008,4.85535174,139.03,138.98,34.40230614]
[1745053543209,4.85747088,139.02,138.98,34.40230614]
[1745053543410,25.44,139.05,138.98,34.40230614]
[1745053543610,4.85736312,139.04,138.98,34.40230614]
[1745053543904,4.85736312,139.03,138.98,34.40230614]
[1745053544110,4.85736312,139.02,138.98,34.40230614]
[1745053544310,25.44,139.05,138.98,34.40230614]
[1745053544510,4.85916401,139.04,138.98,34.40230614]
[1745053544711,4.85916401,139.03,138.98,34.40230614]
[1745053544912,4.85916401,139.02,138.98,34.40230614]
[1745053545114,25.44,139.05,138.98,34.40230614]
[1745053545315,4.85940107,139.04,138.98,34.40230614]
[1745053545514,4.85940107,139.03,138.98,34.40230614]
[1745053545714,4.85940107,139.02,138.98,34.40230614]
[1745053546014,25.44,139.05,138.98,34.40230614]
[1745053546208,4.86006386,139.04,138.98,34.40230614]
[1745053546409,4.86006386,139.03,138.98,34.40230614]
[1745053546607,4.86006386,139.02,138.98,34.40230614]
[1745053546807,25.44,139.05,138.98,34.40230614]
[1745053547015,4.860769,139.04,138.98,34.40230614]
[1745053547216,4.860769,139.03,138.98,25.44]
[1745053547515,4.860769,139.02,138.98,25.44]
[1745053547708,4.860769,139.01,138.98,25.44]
[1745053547909,4.860769,139.0,138.98,25.44]
[1745053548113,2.0385,139.04,138.98,25.44]
[1745053548308,4.86160208,139.03,138.98,25.44]
[1745053548512,4.86160208,139.02,138.98,25.44]
[1745053548708,4.86160208,139.01,138.98,25.44]
[1745053548913,2.0385,139.04,138.98,25.44]
[1745053548914,4.86160208,139.0,138.98,25.44]
[1745053549116,4.86160208,138.99,138.98,25.44]
[1745053551821,2.0385,139.04,138.98,25.44]
[1745053552118,4.86081959,139.03,138.98,25.44]
[1745053552318,4.86081959,139.02,138.98,25.44]
[1745053552518,4.86081959,139.01,138.98,25.44]
[1745053552821,4.86081959,139.0,138.98,25.44]
[1745053553013,2.0385,139.04,138.98,25.44]
[1745053553217,4.86053261,139.03,138.98,25.44]
[1745053553420,4.86053261,139.02,138.98,25.44]
[1745053553720,4.86053261,139.01,138.98,25.44]
[1745053553922,2.0385,139.04,138.98,25.44]
[1745053554118,4.86021435,139.03,138.98,25.44]
[1745053554423,4.86021435,139.02,138.98,25.44]
[1745053554722,25.44,139.05,138.98,34.40230614]
[1745053554922,4.85979433,139.04,139.02,8.96230614]
[1745053555115,595.3,139.12,139.03,34.40230614]
[1745053555521,595.3,139.12,139.08,7.1904]
[1745053555720,595.3,139.12,139.03,34.40230614]
[1745053555921,595.3,139.12,139.03,25.44]
[1745053556121,604.26230614,139.12,139.03,25.44]
[1745053556320,604.26230614,139.12,139.07,7.1908]
[1745053557725,604.26230614,139.12,139.03,25.44]
[1745053557726,604.26230614,139.12,139.08,7.1906]
[1745053558023,595.3,139.12,139.04,8.96230614]
[1745053558527,604.26230614,139.12,139.03,25.44]
[1745053560128,605.51378958,139.12,139.03,25.44]
[1745053561328,8.96230614,139.1,139.03,25.44]
[1745053561531,29.4592,139.09,139.0,1.9666]
[1745053561827,8.96230614,139.08,139.0,25.44]
[1745053563031,10.21412722,139.08,139.0,25.44]
[1745053563232,8.96230614,139.06,139.0,25.44]
[1745053563432,34.40230614,139.06,139.0,25.44]
[1745053564132,8.96230614,139.04,138.97,25.44]
[1745053564331,27.3954,139.03,138.97,25.44]
[1745053565627,27.3954,139.03,138.94,12.77300614]
[1745053565628,27.3954,139.03,138.94,3.8107]
[1745053565931,2.0327,139.02,138.94,38.21300614]
[1745053566133,2.0327,139.02,138.94,36.24640614]
[1745053566333,2.0327,139.02,138.94,38.27610614]
[1745053566831,27.3954,139.03,138.96,8.96230614]
[1745053567032,4.73978667,139.02,138.96,8.96230614]
[1745053567232,25.44,139.03,138.97,25.44]
[1745053567433,4.73981339,139.02,138.97,25.44]
[1745053567630,25.44,139.06,138.98,8.96230614]
[1745053567934,4.74001573,139.05,138.98,8.96230614]
[1745053568135,4.74001573,139.04,138.98,8.96230614]
[1745053568432,4.74001573,139.03,138.98,8.96230614]
[1745053568729,4.74001573,139.02,138.98,8.96230614]
[1745053569032,25.44,139.06,138.98,8.96230614]
[1745053569232,4.74018637,139.05,138.98,8.96230614]
[1745053569432,4.74018637,139.04,138.98,8.96230614]
[1745053569634,4.74018637,139.03,138.98,8.96230614]
[1745053569833,25.44,139.06,138.98,8.96230614]
[1745053570034,4.74067356,139.05,138.98,8.96230614]
[1745053570229,4.74067356,139.04,138.98,8.96230614]
[1745053570533,4.74067356,139.03,138.98,8.96230614]
[1745053570834,25.44,139.06,138.98,8.96230614]
[1745053571034,4.74142708,139.05,138.98,8.96230614]
[1745053571332,4.74142708,139.04,138.98,8.96230614]
[1745053571533,4.74142708,139.03,138.98,8.96230614]
[1745053571734,4.74168224,139.02,138.98,8.96230614]
[1745053571933,25.44,139.06,138.98,8.96230614]
[1745053572133,4.7417337,139.05,138.98,8.96230614]
[1745053572334,4.7417337,139.04,138.98,8.96230614]
[1745053572535,4.7417337,139.03,138.98,8.96230614]
[1745053572833,4.7417337,139.02,138.98,8.96230614]
[1745053573030,25.44,139.06,138.98,8.96230614]
[1745053573336,4.74192899,139.05,138.98,8.96230614]
[1745053573635,4.7419506,139.04,138.98,8.96230614]
[1745053573835,4.7419506,139.03,138.98,8.96230614]
[1745053574035,4.7419506,139.02,138.98,8.96230614]
[1745053574236,25.44,139.06,138.98,8.96230614]
[1745053574536,4.74137265,139.05,138.98,8.96230614]
[1745053574834,4.74137265,139.04,138.98,8.96230614]
[1745053575030,4.74137265,139.03,138.98,8.96230614]
[1745053575233,25.44,139.06,138.98,8.96230614]
[1745053575433,4.74133635,139.05,138.98,8.96230614]
[1745053575634,4.74133635,139.04,138.98,8.96230614]
[1745053575935,4.74133635,139.03,138.98,8.96230614]
[1745053576132,25.44,139.06,138.98,8.96230614]
[1745053576336,4.74134571,139.05,138.98,8.96230614]
[1745053576536,4.74134571,139.04,138.98,8.96230614]
[1745053576736,4.74134571,139.03,138.98,8.96230614]
[1745053576938,25.44,139.06,138.98,8.96230614]
[1745053577137,4.74148033,139.05,138.98,8.96230614]
[1745053577339,4.74148033,139.04,138.98,8.96230614]
[1745053577535,4.74148033,139.03,138.98,8.96230614]
[1745053577732,25.44,139.06,138.98,8.96230614]
[1745053577935,4.74145452,139.05,138.98,8.96230614]
[1745053578137,25.42,139.27,139.04,17.92461228]
[1745053578339,3.9029,139.2,139.11,8.96230614]
[1745053578637,1.9508,139.19,139.11,34.38230614]
[1745053579038,1.9508,139.19,139.13,7.1877]
[1745053579334,1.9508,139.19,139.11,34.38230614]
[1745053579533,1.9508,139.19,139.11,25.42]
[1745053579737,27.3708,139.19,139.11,25.42]
[1745053579939,1.9508,139.19,139.11,25.42]
[1745053580141,27.3708,139.19,139.11,25.42]
[1745053580639,27.3708,139.19,139.14,7.1872]
[1745053580841,27.3708,139.19,139.11,25.42]
[1745053581142,27.3708,139.19,139.12,8.96230614]
[1745053582241,27.3708,139.19,139.14,7.1874]
[1745053584140,27.3708,139.19,139.14,8.96230614]
[1745053584340,1.9508,139.19,139.16,8.96230614]
[1745053584738,1.9508,139.19,139.18,7.1855]
[1745053585439,3.9029,139.2,139.18,7.1855]
[1745053586435,3.9029,139.2,139.16,8.96230614]
[1745053587144,3.9029,139.2,139.17,7.1859]
[1745053587344,3.9029,139.2,139.16,8.96230614]
[1745053587542,1.25051656,139.23,139.16,8.96230614]
[1745053587846,3.8962,139.24,139.2,8.96230614]
[1745053588438,3.8962,139.24,139.21,7.1839]
[1745053589747,3.8962,139.24,139.17,34.38230614]
[1745053590350,3.8962,139.24,139.19,7.1846]
[1745053590549,3.8962,139.24,139.17,34.38230614]
[1745053591145,3.8962,139.24,139.19,7.1845]
[1745053591351,3.8962,139.24,139.17,34.38230614]
[1745053592256,3.8962,139.24,139.19,7.1845]
[1745053592951,3.8962,139.24,139.2,7.1844]
[1745053593151,3.8962,139.24,139.17,34.38230614]
[1745053593951,3.8962,139.24,139.19,7.1845]
[1745053594153,3.8962,139.24,139.17,34.38230614]
[1745053594553,3.8962,139.24,139.2,7.1844]
[1745053598750,3.8962,139.24,139.19,7.1848]
[1745053599457,12.85850614,139.24,139.15,8.96230614]
[1745053599653,12.85850614,139.24,139.16,25.86]
[1745053605160,14.10893283,139.24,139.16,25.86]
[1745053607163,5.72525938,139.22,139.17,5.72525938]
[1745053611666,10.87188607,139.24,139.17,5.72525938]
[1745053611959,10.87188607,139.24,139.19,5.72525938]
[1745053612562,1.43616257,139.26,139.21,5.72525938]
[1745053612769,1.43616257,139.26,139.23,5.72525938]
[1745053613065,31.58525938,139.29,139.23,12.90795938]
[1745053613864,31.58525938,139.29,139.24,7.1823]
[1745053614368,31.58525938,139.29,139.23,12.90815938]
[1745053615168,31.58525938,139.29,139.23,5.72525938]
[1745053616568,25.86,139.29,139.23,5.72525938]
[1745053616765,31.58525938,139.29,139.23,5.72525938]
[1745053617364,31.58525938,139.29,139.23,12.90815938]
[1745053621868,31.58525938,139.29,139.23,5.72525938]
[1745053622472,5.72525938,139.27,139.21,5.72525938]
[1745053622774,5.72525938,139.25,139.2,31.56525938]
[1745053623174,5.72525938,139.27,139.22,5.72525938]
[1745053623374,31.58525938,139.29,139.24,5.72525938]
[1745053624074,25.86,139.29,139.24,5.72525938]
[1745053624270,12.70840225,139.31,139.24,5.72525938]
[1745053624476,6.98314287,139.31,139.24,31.56525938]
[1745053624677,5.72525938,139.3,139.24,31.56525938]
[1745053627879,5.72525938,139.28,139.24,31.56525938]
[1745053628081,5.72525938,139.28,139.24,25.84]
[1745053629179,5.72525938,139.28,139.24,31.56525938]
[1745053631586,5.72525938,139.28,139.24,25.84]
[1745053632084,5.72525938,139.3,139.25,5.72525938]
[1745053635488,6.98314287,139.31,139.25,5.72525938]
[1745053635686,5.72525938,139.29,139.25,5.72525938]
[1745053639788,5.72525938,139.3,139.25,5.72525938]
[1745053647793,5.72525938,139.3,139.24,25.84]
[1745053648098,5.72525938,139.28,139.23,25.76]
[1745053650704,5.72525938,139.28,139.19,1.1214]
[1745053650899,5.72525938,139.24,139.2,25.76]
[1745053651703,5.72525938,139.26,139.2,25.76]
[1745053651901,31.48525938,139.28,139.23,5.72525938]
[1745053652098,31.48525938,139.28,139.22,5.72525938]
[1745053652399,31.48525938,139.28,139.24,5.72525938]
[1745053655001,31.48525938,139.28,139.22,31.48525938]
[1745053658101,5.55051013,139.27,139.22,31.48525938]
[1745053658302,5.55051013,139.26,139.22,31.48525938]
[1745053658501,5.55051013,139.25,139.22,31.48525938]
[1745053658701,5.55051013,139.24,139.22,31.48525938]
[1745053658906,5.55051013,139.23,139.22,31.48525938]
[1745053663105,5.19741013,139.23,139.22,31.48525938]
[1745053664211,5.19741013,139.23,139.22,5.72525938]
[1745053664906,5.19754421,139.23,139.22,5.72525938]
[1745053665108,5.19754428,139.23,139.22,5.72525938]
[1745053667806,5.19754428,139.23,139.2,5.72525938]
[1745053668006,5.19754428,139.22,139.2,5.72525938]